bitfinex/quotes_BTCUSD_20240911
["timestamp","ask_amount","ask_price","bid_price","bid_amount"]
[1726014863498,0.000819,57614.0,57613.0,0.98224028]
[1726014863720,0.000819,57614.0,57613.0,0.90433778]
[1726014863943,0.000819,57614.0,57613.0,0.98223916]
[1726014864166,0.000819,57614.0,57613.0,0.98919416]
[1726014864631,0.000819,57614.0,57613.0,1.01719416]
[1726014864865,0.000819,57614.0,57613.0,1.01663327]
[1726014865535,0.000819,57614.0,57613.0,0.73877235]
[1726014865786,0.000819,57614.0,57613.0,0.73528437]
[1726014866018,0.000819,57614.0,57613.0,0.70932401]
[1726014869283,0.000819,57614.0,57613.0,0.65740024]
[1726014869553,0.000819,57614.0,57613.0,0.73528437]
[1726014869764,0.000819,57614.0,57613.0,0.25348916]
[1726014869978,0.000819,57614.0,57613.0,0.201571]
[1726014870867,0.000819,57614.0,57613.0,0.173571]
[1726014871076,0.000819,57614.0,57613.0,0.187571]
[1726014871282,0.000819,57614.0,57613.0,0.197571]
[1726014871494,0.000819,57614.0,57613.0,0.173571]
[1726014871719,0.000819,57614.0,57613.0,0.19612072]
[1726014871934,0.000819,57614.0,57613.0,0.23112072]
[1726014872389,0.000819,57614.0,57613.0,0.22612072]
[1726014873492,0.000819,57614.0,57613.0,0.21912072]
[1726014873897,0.000819,57614.0,57613.0,0.23312072]
[1726014874238,0.000819,57614.0,57613.0,0.24612072]
[1726014876292,0.000819,57614.0,57613.0,0.45753208]
[1726014876509,0.000819,57614.0,57613.0,0.53542138]
[1726014876757,0.000819,57614.0,57613.0,0.87683624]
[1726014877219,0.000819,57614.0,57613.0,0.95475214]
[1726014877435,0.000819,57614.0,57613.0,0.98070237]
[1726014877621,0.000819,57614.0,57613.0,0.87684997]
[1726014879502,0.000819,57614.0,57613.0,0.98070237]
[1726014879745,0.000819,57614.0,57613.0,0.87684997]
[1726014880175,0.000819,57614.0,57613.0,0.95475926]
[1726014880395,0.000819,57614.0,57613.0,0.98070237]
[1726014880619,0.000819,57614.0,57613.0,0.59833208]
[1726014880859,0.000819,57614.0,57613.0,0.98069722]
[1726014881076,0.0033163,57618.0,57617.0,0.3669138]
[1726014881293,0.0033163,57618.0,57617.0,1.14713562]
[1726014881513,0.0033163,57618.0,57617.0,1.30293251]
[1726014881726,0.0033163,57618.0,57617.0,1.30288468]
[1726014882496,0.0024963,57629.0,57628.0,0.5676808]
[1726014882723,0.0024963,57629.0,57628.0,1.12210262]
[1726014882928,0.0024963,57629.0,57628.0,1.27774524]
[1726014883147,0.0024963,57629.0,57628.0,1.12210262]
[1726014883859,0.0024963,57629.0,57628.0,1.14510262]
[1726014884087,0.0024963,57629.0,57628.0,1.18165234]
[1726014884340,0.52864518,57651.0,57637.0,0.203499]
[1726014884543,0.52864518,57651.0,57637.0,0.88737718]
[1726014884871,0.52864518,57651.0,57637.0,1.16585882]
[1726014885337,0.00082,57651.0,57637.0,1.08814471]
[1726014885537,0.52782518,57650.0,57637.0,1.18637823]
[1726014885763,0.52782518,57650.0,57637.0,0.90789659]
[1726014886694,0.00082,57651.0,57637.0,1.01965747]
[1726014886913,0.00082,57651.0,57637.0,0.99589659]
[1726014887343,0.00082,57651.0,57637.0,1.06157056]
[1726014887563,0.00082,57651.0,57637.0,0.98389659]
[1726014887788,0.00082,57651.0,57637.0,0.99789659]
[1726014889549,0.00082,57651.0,57641.0,0.092]
[1726014889831,0.00082,57651.0,57650.0,0.5640148]
[1726014890073,0.00082,57651.0,57650.0,0.88965178]
[1726014890276,0.00082,57651.0,57650.0,0.70075498]
[1726014890921,0.00082,57651.0,57650.0,0.72375498]
[1726014891164,0.00082,57651.0,57650.0,0.7463047]
[1726014891634,0.00082,57651.0,57650.0,0.7603047]
[1726014891849,0.00082,57651.0,57650.0,0.7463047]
[1726014892754,0.00082,57651.0,57650.0,0.6703047]
[1726014892971,0.00082,57651.0,57650.0,0.5089499]
[1726014893399,0.00082,57651.0,57650.0,0.5229499]
[1726014893637,0.00082,57651.0,57650.0,0.5089499]
[1726014893882,0.00082,57651.0,57650.0,0.48640018]
[1726014894342,0.00082,57651.0,57650.0,0.50040018]
[1726014894560,0.00082,57651.0,57650.0,0.48640018]
[1726014895023,0.00082,57651.0,57650.0,0.50040018]
[1726014896107,0.06322,57654.0,57653.0,0.173451]
[1726014896322,0.06322,57654.0,57653.0,0.24509012]
[1726014897402,0.06322,57654.0,57653.0,0.25909012]
[1726014899254,0.06322,57654.0,57653.0,0.24509012]
[1726014899465,0.06322,57654.0,57653.0,0.25909012]
[1726014899704,0.06322,57654.0,57653.0,0.27309012]
[1726014899910,0.06322,57654.0,57653.0,0.25909012]
[1726014900191,0.06322,57654.0,57653.0,0.27309012]
[1726014900414,0.06322,57654.0,57653.0,0.210451]
[1726014900622,0.06322,57654.0,57653.0,0.173451]
[1726014900830,0.06322,57654.0,57653.0,0.182451]
[1726014901051,0.06322,57654.0,57653.0,0.194451]
[1726014902364,0.14562,57654.0,57653.0,0.009]
[1726014902575,0.14562,57654.0,57653.0,0.173451]
[1726014902793,0.14562,57654.0,57653.0,0.176451]
[1726014903031,0.14562,57654.0,57653.0,0.003]
[1726014903258,0.14562,57654.0,57652.0,0.173454]
[1726014903476,0.0658,57653.0,57652.0,0.173454]
[1726014905040,0.0658,57653.0,57652.0,0.1907994]
[1726014905945,0.0658,57653.0,57652.0,0.1977994]
[1726014908285,0.0658,57653.0,57652.0,0.180454]
[1726014908727,0.0658,57653.0,57652.0,0.175454]
[1726014908936,0.0658,57653.0,57652.0,0.179454]
[1726014909364,0.0658,57653.0,57652.0,0.182454]
[1726014915254,0.0658,57653.0,57652.0,0.184092]
[1726014918452,0.00082,57654.0,57653.0,0.173451]
[1726014919769,0.00082,57654.0,57653.0,0.178451]
[1726014919988,0.00082,57654.0,57653.0,0.180451]
[1726014927503,0.00082,57654.0,57653.0,0.175451]
[1726014927705,0.00082,57654.0,57653.0,0.177451]
[1726014928119,0.00082,57654.0,57653.0,0.174451]
[1726014928572,0.06622,57654.0,57653.0,0.178451]
[1726014931654,0.06622,57654.0,57653.0,0.19216862]
[1726014935114,0.06622,57654.0,57653.0,0.18816862]
[1726014935341,0.06622,57654.0,57653.0,0.18716862]
[1726014935564,0.06622,57654.0,57653.0,0.20116862]
[1726014936262,0.00082,57654.0,57653.0,0.47286188]
[1726014936481,0.00082,57654.0,57653.0,0.79455211]
[1726014936701,0.00082,57654.0,57653.0,0.95070193]
[1726014937158,0.00082,57654.0,57653.0,0.79075563]
[1726014937391,0.00082,57654.0,57653.0,0.79875563]
[1726014937615,0.00082,57654.0,57653.0,0.79275563]
[1726014937837,0.00082,57654.0,57653.0,1.07340278]
[1726014938055,0.00082,57654.0,57653.0,1.23808916]
[1726014938289,0.0014988,57659.0,57658.0,0.203436]
[1726014938558,0.0014988,57659.0,57658.0,0.85395995]
[1726014938809,0.0014988,57659.0,57658.0,0.86735507]
[1726014939046,0.0014988,57659.0,57658.0,1.02835546]
[1726014939272,0.0014988,57659.0,57658.0,1.18835546]
[1726014939494,0.0022016,57661.0,57660.0,0.34673]
[1726014939705,0.0022016,57661.0,57660.0,1.41665128]
[1726014939936,0.0022016,57661.0,57660.0,1.43438335]
[1726014940171,0.0022016,57661.0,57660.0,1.49438335]
[1726014940847,0.0022016,57661.0,57660.0,1.50838335]
[1726014941329,0.0022016,57661.0,57660.0,1.32305885]
[1726014941540,0.0022016,57661.0,57660.0,1.33705137]
[1726014941780,0.0022016,57661.0,57660.0,1.34805609]
[1726014942020,0.0022016,57661.0,57660.0,1.33705609]
[1726014942256,0.0022016,57661.0,57660.0,1.12001831]
[1726014943371,0.0022016,57661.0,57660.0,1.10054648]
[1726014943598,0.0022016,57661.0,57660.0,1.11231023]
[1726014943836,0.0022016,57661.0,57660.0,1.10884267]
[1726014944084,7e-07,57672.0,57671.0,0.09]
[1726014944331,0.0022016,57685.0,57681.0,0.342167]
[1726014944567,0.0022016,57685.0,57681.0,0.94657811]
[1726014945227,0.0022016,57685.0,57681.0,0.73637512]
[1726014945673,0.0022016,57685.0,57681.0,0.7244602]
[1726014945890,0.0022016,57685.0,57681.0,0.76816334]
[1726014946334,0.0022016,57685.0,57681.0,0.71634108]
[1726014946555,0.0022016,57685.0,57681.0,1.0673292]
[1726014946776,7e-07,57682.0,57681.0,1.06159202]
[1726014947013,7e-07,57682.0,57681.0,1.07313613]
[1726014947255,7e-07,57682.0,57681.0,1.22823677]
[1726014947488,7e-07,57682.0,57681.0,1.21623677]
[1726014947718,7e-07,57682.0,57681.0,1.07513613]
[1726014947916,7e-07,57682.0,57681.0,1.08948988]
[1726014948141,7e-07,57682.0,57681.0,1.23649027]
[1726014948385,7e-07,57682.0,57681.0,1.36562885]
[1726014948626,7e-07,57682.0,57681.0,1.25049027]
[1726014948845,7e-07,57682.0,57681.0,1.23649027]
[1726014949073,7e-07,57682.0,57681.0,1.22249027]
[1726014949293,7e-07,57682.0,57681.0,0.96488558]
[1726014949520,0.000819,57696.0,57686.0,0.263352]
[1726014949737,0.000819,57696.0,57686.0,0.82500241]
[1726014949960,0.000819,57696.0,57686.0,0.8422509]
[1726014950836,0.000819,57696.0,57686.0,0.9051509]
[1726014951057,0.000819,57696.0,57686.0,0.9191509]
[1726014952260,0.000819,57696.0,57686.0,0.9051509]
[1726014952713,0.000819,57696.0,57686.0,0.9331509]
[1726014953410,0.0001,57699.0,57698.0,0.173316]
[1726014953631,0.0001,57699.0,57698.0,0.39258778]
[1726014953882,0.0001,57699.0,57698.0,0.40983627]
[1726014954570,0.0001,57699.0,57698.0,0.50073627]
[1726014955497,0.0001,57699.0,57698.0,0.51173627]
[1726014955728,0.0001,57699.0,57698.0,0.51473627]
[1726014955952,0.0001,57699.0,57698.0,0.52873627]
[1726014956186,0.0001,57699.0,57698.0,0.51473627]
[1726014956888,0.0001,57699.0,57698.0,0.52873627]
[1726014957345,0.0001,57699.0,57698.0,0.51473627]
[1726014957588,0.0001,57699.0,57698.0,0.52873627]
[1726014957806,0.0001,57699.0,57698.0,0.51473627]
[1726014958033,0.0001,57699.0,57698.0,0.52873627]
[1726014958463,0.0001,57699.0,57698.0,0.53073627]
[1726014959416,0.0026046,57706.0,57705.0,0.173295]
[1726014959667,0.0026046,57706.0,57705.0,0.4095038]
[1726014961040,0.0026046,57706.0,57705.0,0.4305038]
[1726014961701,0.0026046,57706.0,57705.0,0.24556362]
[1726014961936,0.0026046,57706.0,57705.0,0.24056362]
[1726014962876,0.0026046,57706.0,57705.0,0.24956362]
[1726014967196,0.0026046,57706.0,57705.0,0.4255038]
[1726014968342,0.0022016,57708.0,57707.0,0.173289]
[1726014968569,0.0022016,57708.0,57707.0,0.196289]
[1726014968797,0.0022016,57708.0,57707.0,0.21321763]
[1726014969709,0.0022016,57708.0,57707.0,0.22021763]
[1726014970843,0.0022016,57708.0,57707.0,0.22521763]
[1726014971069,0.0022016,57708.0,57707.0,0.26533341]
[1726014971508,0.0022016,57708.0,57707.0,0.22521763]
[1726014974505,0.1454016,57708.0,57707.0,0.05192863]
[1726014974938,0.3186876,57708.0,57707.0,0.02892863]
[1726014975191,0.3186876,57708.0,57707.0,0.012]
[1726014975407,0.3195066,57708.0,57707.0,0.012]
[1726014975631,0.3195066,57708.0,57707.0,0.005]
[1726014975866,0.3195066,57708.0,57707.0,0.008]
[1726014976602,0.3195066,57708.0,57707.0,0.003]
[1726014978214,0.6660786,57708.0,57707.0,0.003]
[1726014979153,0.3195066,57708.0,57707.0,0.003]
[1726014979374,0.1462206,57708.0,57707.0,0.003]
[1726014979833,0.6660786,57708.0,57707.0,0.003]
[1726014980556,1.0126506,57708.0,57707.0,0.003]
[1726014981416,0.233792,57706.0,57702.0,0.173303]
[1726014981626,0.233792,57706.0,57703.0,0.1963]
[1726014981875,0.233792,57706.0,57704.0,0.173297]
[1726014981876,0.0605,57706.0,57704.0,0.173297]
[1726014982536,0.0605,57706.0,57705.0,0.173295]
[1726014982750,0.0605,57706.0,57705.0,0.20984476]
[1726014983322,0.0615,57706.0,57705.0,0.20984476]
[1726014983500,0.0605,57706.0,57705.0,0.20984476]
[1726014983701,0.0605,57706.0,57705.0,0.21084476]
[1726014985171,0.0605,57706.0,57705.0,0.21484476]
[1726014986043,0.0605,57706.0,57705.0,0.02192006]
[1726014987100,0.0605,57706.0,57705.0,0.02355806]
[1726014987303,0.233792,57706.0,57705.0,0.07538876]
[1726014987708,0.580376,57706.0,57705.0,0.07538876]
[1726014988136,0.580376,57706.0,57705.0,0.07138876]
[1726014988343,0.580376,57706.0,57705.0,0.07150666]
[1726014988574,0.580376,57706.0,57705.0,0.07350666]
[1726014988887,0.580376,57706.0,57705.0,0.02155806]
[1726014989104,1.00836,57706.0,57705.0,0.07350673]
[1726014989332,1.00836,57706.0,57705.0,0.02055806]
[1726014989584,0.662776,57706.0,57705.0,0.07250673]
[1726014989824,0.581376,57706.0,57705.0,0.07250673]
[1726014990036,0.234792,57706.0,57705.0,0.07250673]
[1726014990247,0.234792,57706.0,57705.0,0.02055806]
[1726014990453,0.581376,57706.0,57705.0,0.02055806]
[1726014991378,0.234792,57706.0,57705.0,0.02055806]
[1726014991621,1.00936,57706.0,57705.0,0.02055806]
[1726014991842,1.355944,57706.0,57705.0,0.02055806]
[1726014992096,1.355944,57706.0,57705.0,0.003638]
[1726014992530,1.355944,57706.0,57705.0,0.001638]
[1726014992731,1.354944,57706.0,57705.0,0.001638]
[1726014993172,1.355944,57706.0,57705.0,0.002638]
[1726014993613,1.00936,57706.0,57705.0,0.002638]
[1726014993829,1.01136,57706.0,57705.0,0.002638]
[1726014996541,0.236792,57706.0,57705.0,0.002638]
[1726014996957,0.583376,57706.0,57705.0,0.002638]
[1726014997164,0.236792,57706.0,57705.0,0.002638]
[1726014997371,0.583376,57706.0,57705.0,0.002638]
[1726014997602,0.92996,57706.0,57705.0,0.002638]
[1726014998247,1.276544,57706.0,57705.0,0.002638]
[1726014998493,1.46776707,57706.0,57705.0,0.002638]
[1726014998625,1.41894428,57706.0,57705.0,0.002638]
[1726014999562,0.930779,57706.0,57705.0,0.002638]
[1726014999714,0.584195,57706.0,57705.0,0.002638]
[1726014999920,0.583195,57706.0,57705.0,0.001638]
[1726015000134,0.929779,57706.0,57705.0,0.001638]
[1726015000780,0.931779,57706.0,57705.0,0.001638]
[1726015001162,0.585195,57706.0,57705.0,0.001638]
[1726015001979,0.931779,57706.0,57705.0,0.001638]
[1726015002599,0.585195,57706.0,57705.0,0.001638]
[1726015002955,0.931779,57706.0,57705.0,0.001638]
[1726015003392,0.065319,57706.0,57705.0,0.001638]
[1726015003607,0.004819,57706.0,57705.0,0.001638]
[1726015003826,0.178111,57706.0,57705.0,0.001638]
[1726015004036,0.178111,57706.0,57705.0,0.01863756]
[1726015004238,0.176111,57706.0,57705.0,0.001638]
[1726015004446,0.002819,57706.0,57705.0,0.01863756]
[1726015004654,0.000819,57706.0,57705.0,0.003638]
[1726015005096,0.001819,57706.0,57705.0,0.003638]
[1726015005276,0.175111,57706.0,57705.0,0.003638]
[1726015008506,0.001819,57706.0,57705.0,0.003638]
[1726015008938,0.001819,57706.0,57705.0,0.02063538]
[1726015009379,0.001819,57706.0,57705.0,0.003638]
[1726015009600,0.175111,57706.0,57705.0,0.003638]
[1726015010023,0.175111,57706.0,57705.0,0.02063538]
[1726015010229,0.175111,57706.0,57705.0,0.003638]
[1726015010834,0.175111,57706.0,57705.0,0.02061439]
[1726015011085,0.001819,57706.0,57705.0,0.003638]
[1726015011306,0.001819,57706.0,57705.0,0.02060398]
[1726015011529,0.175111,57706.0,57705.0,0.003638]
[1726015011753,0.27161762,57706.0,57705.0,0.02060398]
[1726015011968,0.27161762,57706.0,57705.0,0.003638]
[1726015013788,0.27161762,57706.0,57705.0,0.0206038]
[1726015013996,0.27161762,57706.0,57705.0,0.003638]
[1726015014178,0.27161762,57706.0,57705.0,0.0206038]
[1726015015371,0.96478562,57706.0,57705.0,0.0206038]
[1726015015803,0.96478562,57706.0,57705.0,0.003638]
[1726015016042,1.45666962,57706.0,57705.0,0.003638]
[1726015016727,0.320411,57706.0,57705.0,0.003638]
[1726015016942,0.320411,57706.0,57705.0,0.0213321]
[1726015016943,0.175111,57706.0,57705.0,0.0213321]
[1726015017399,0.175111,57706.0,57705.0,0.003638]
[1726015017622,0.175111,57706.0,57705.0,0.0186038]
[1726015017857,0.174111,57706.0,57705.0,0.001638]
[1726015018077,0.521695,57706.0,57705.0,0.0186038]
[1726015018255,0.521695,57706.0,57705.0,0.001638]
[1726015018508,0.523695,57706.0,57705.0,0.0186038]
[1726015018732,0.523695,57706.0,57705.0,0.001638]
[1726015019184,0.522695,57706.0,57705.0,0.001638]
[1726015019614,0.522695,57706.0,57705.0,0.002638]
[1726015019851,0.002819,57706.0,57705.0,0.0196038]
[1726015020064,0.002819,57706.0,57705.0,0.002638]
[1726015020318,0.176111,57706.0,57705.0,0.002638]
[1726015020531,0.176111,57706.0,57705.0,0.0196038]
[1726015020740,0.002819,57706.0,57705.0,0.20822757]
[1726015020949,0.002819,57706.0,57705.0,0.22519337]
[1726015021131,0.002819,57706.0,57705.0,0.1928988]
[1726015022791,0.002819,57706.0,57705.0,0.83309989]
[1726015023009,0.002819,57706.0,57705.0,1.24373665]
[1726015023260,0.0030206,57708.0,57707.0,0.317889]
[1726015023495,0.0030206,57708.0,57707.0,1.35063287]
[1726015023717,0.0030206,57708.0,57707.0,1.61798592]
[1726015024147,0.0030206,57708.0,57707.0,1.69412795]
[1726015024354,0.0030206,57708.0,57707.0,1.28349119]
[1726015025195,0.0030206,57708.0,57707.0,1.43930154]
[1726015025406,0.0030206,57708.0,57707.0,1.43923627]
[1726015025823,0.0030206,57708.0,57707.0,1.28349119]
[1726015026043,0.0030206,57708.0,57707.0,1.28002614]
[1726015026290,0.0030206,57708.0,57707.0,1.29402614]
[1726015026492,0.0030206,57708.0,57707.0,1.31002614]
[1726015026699,0.0030206,57708.0,57707.0,1.29602614]
[1726015027376,0.0030206,57708.0,57707.0,1.31002614]
[1726015028050,0.0030206,57708.0,57707.0,1.29602614]
[1726015028496,0.0030206,57708.0,57707.0,1.45156598]
[1726015028710,0.0030206,57708.0,57707.0,1.43756598]
[1726015029366,0.0030206,57708.0,57707.0,1.29602614]
[1726015029590,0.000819,57709.0,57708.0,0.349886]
[1726015029811,0.000819,57709.0,57708.0,1.12128016]
[1726015030027,0.000819,57709.0,57708.0,0.98262747]
[1726015031086,0.000819,57709.0,57708.0,1.13807789]
[1726015031319,0.000819,57709.0,57708.0,1.15207789]
[1726015031547,0.000819,57709.0,57708.0,0.99662747]
[1726015031797,0.000819,57709.0,57708.0,1.15207789]
[1726015032020,0.000819,57709.0,57708.0,1.01062747]
[1726015032994,0.000819,57709.0,57708.0,1.22607789]
[1726015033201,0.000819,57709.0,57708.0,1.07062747]
[1726015033420,0.000919,57719.0,57718.0,0.410356]
[1726015033638,0.000919,57719.0,57718.0,1.35946088]
[1726015033854,0.000919,57719.0,57718.0,1.22097674]
[1726015034291,0.000919,57719.0,57718.0,1.37605108]
[1726015034516,0.000919,57719.0,57718.0,1.22097674]
[1726015034721,0.000919,57719.0,57718.0,1.23377839]
[1726015034946,0.000919,57719.0,57718.0,1.24477839]
[1726015035181,0.000919,57719.0,57718.0,1.24277839]
[1726015035401,0.000919,57719.0,57718.0,1.33514264]
[1726015035618,0.000919,57719.0,57718.0,1.02290515]
[1726015035857,0.000919,57719.0,57718.0,1.09690515]
[1726015036317,0.000919,57719.0,57718.0,0.74490824]
[1726015036770,0.000919,57719.0,57718.0,0.53495321]
[1726015036988,0.000919,57719.0,57718.0,0.49391761]
[1726015038106,0.0025446,57724.0,57723.0,0.173241]
[1726015038322,0.0025446,57724.0,57723.0,0.18969232]
[1726015038542,0.0025446,57724.0,57723.0,0.21269232]
[1726015039831,0.0025446,57724.0,57723.0,0.22669232]
[1726015040043,0.0025446,57724.0,57723.0,0.26136155]
[1726015042228,0.0025446,57724.0,57723.0,0.24736155]
[1726015042431,0.0025446,57724.0,57723.0,0.26136155]
[1726015042648,0.0025446,57724.0,57723.0,0.24936155]
[1726015043090,0.0025446,57724.0,57723.0,0.26236155]
[1726015046405,0.0025446,57724.0,57723.0,0.43830173]
[1726015046624,0.0025446,57724.0,57723.0,0.52150173]
[1726015047064,0.0033636,57724.0,57723.0,0.52150173]
[1726015050652,0.0033636,57724.0,57723.0,0.50750173]
[1726015050902,0.0033636,57724.0,57723.0,0.50850173]
[1726015051136,0.0033636,57724.0,57723.0,0.52250173]
[1726015051374,0.0033636,57724.0,57723.0,0.4166325]
[1726015051864,0.0033636,57724.0,57723.0,0.24069232]
[1726015052100,0.0664636,57724.0,57723.0,0.24069232]
[1726015052789,0.0033636,57724.0,57723.0,0.24069232]
[1726015056207,0.0033636,57724.0,57723.0,0.4166325]
[1726015056434,0.0033636,57724.0,57723.0,0.45864221]
[1726015058555,0.0033636,57724.0,57723.0,0.4166325]
[1726015061385,0.0033636,57724.0,57723.0,0.24069232]
[1726015063251,0.0664636,57724.0,57723.0,0.24069232]
[1726015064889,0.0664636,57724.0,57723.0,0.21769232]
[1726015070793,0.16286983,57724.0,57723.0,0.04445132]
[1726015071039,0.33610783,57724.0,57723.0,0.04445132]
[1726015071273,0.76478383,57724.0,57723.0,0.04445132]
[1726015071509,1.11125983,57724.0,57723.0,0.04445132]
[1726015071734,1.11125983,57724.0,57723.0,0.028]
[1726015071966,0.76478383,57724.0,57723.0,0.014]
[1726015072197,0.76478383,57724.0,57723.0,0.017]
[1726015072668,0.76478383,57724.0,57723.0,0.003]
[1726015072894,0.1486636,57724.0,57723.0,0.176241]
[1726015073130,0.1486636,57724.0,57723.0,0.01953486]
[1726015073384,0.1486636,57724.0,57723.0,0.003]
[1726015073601,0.1486636,57724.0,57719.0,0.0534614]
[1726015073834,0.1496636,57724.0,57723.0,0.01657323]
[1726015074077,0.1486636,57724.0,57722.0,0.173243]
[1726015074313,0.1486636,57724.0,57723.0,0.01657323]
[1726015074550,0.1486636,57724.0,57723.0,0.19381423]
[1726015075000,0.1486636,57724.0,57723.0,0.02057323]
[1726015075636,0.1486636,57724.0,57723.0,0.02457323]
[1726015075840,0.1486636,57724.0,57723.0,0.02057323]
[1726015076260,0.1486636,57724.0,57723.0,0.19481423]
[1726015076502,0.0664636,57724.0,57723.0,0.19481423]
[1726015079937,0.0664636,57724.0,57723.0,0.02157323]
[1726015082829,0.5861776,57724.0,57723.0,0.02157323]
[1726015083041,0.2397016,57724.0,57723.0,0.02157323]
[1726015083461,0.2397016,57724.0,57723.0,0.005]
[1726015083938,0.0664636,57724.0,57723.0,0.18979858]
[1726015084145,0.0664636,57724.0,57723.0,0.01655758]
[1726015084349,0.0674636,57724.0,57723.0,0.19079858]
[1726015084988,0.0674636,57724.0,57723.0,0.001]
[1726015085238,0.0674636,57724.0,57723.0,0.01761938]
[1726015086121,0.0674636,57724.0,57723.0,0.19086038]
[1726015087207,0.0674636,57724.0,57723.0,0.01761938]
[1726015087416,0.0674636,57724.0,57723.0,0.19086038]
[1726015087624,0.0674636,57724.0,57723.0,0.18986038]
[1726015088046,0.0674636,57724.0,57723.0,0.19486038]
[1726015088662,0.0674636,57724.0,57723.0,0.21970453]
[1726015089145,0.0664636,57724.0,57723.0,0.21970453]
[1726015089593,0.0033636,57724.0,57723.0,0.22270453]
[1726015089802,0.0033636,57724.0,57723.0,0.24570453]
[1726015091513,0.0033636,57724.0,57723.0,0.22086038]
[1726015093206,0.0033636,57724.0,57723.0,0.19786038]
[1726015093406,0.0671636,57724.0,57723.0,0.02461938]
[1726015093836,0.0671636,57724.0,57723.0,0.008]
[1726015095172,0.5868776,57724.0,57723.0,0.02460067]
[1726015095459,0.9333536,57724.0,57723.0,0.02460067]
[1726015095695,0.9333536,57724.0,57723.0,0.008]
[1726015095900,0.173248,57721.0,57719.0,0.001638]
[1726015096114,0.16020623,57720.0,57719.0,0.001638]
[1726015096781,0.0638,57720.0,57719.0,0.001638]
[1726015097035,0.0638,57720.0,57719.0,0.174891]
[1726015097467,0.001,57720.0,57719.0,0.32930104]
[1726015097685,0.0033636,57724.0,57723.0,0.173241]
[1726015098553,0.0033636,57724.0,57723.0,0.196241]
[1726015099653,0.0033636,57724.0,57723.0,0.205241]
[1726015100299,0.0033636,57724.0,57723.0,0.27616688]
[1726015100998,0.0033636,57724.0,57723.0,0.32811633]
[1726015101216,0.0033636,57724.0,57723.0,0.35405908]
[1726015101443,0.0033636,57724.0,57723.0,0.64994977]
[1726015101656,0.0033636,57724.0,57723.0,0.79832333]
[1726015101893,0.0033636,57724.0,57723.0,1.0070494]
[1726015103270,0.0033636,57724.0,57723.0,0.91064317]
[1726015103961,0.0033636,57724.0,57723.0,0.91023735]
[1726015105562,0.0033636,57724.0,57723.0,1.00664358]
[1726015107112,0.0033636,57724.0,57723.0,1.26252198]
[1726015107344,0.0025446,57735.0,57730.0,0.17322]
[1726015107555,0.0025446,57735.0,57730.0,0.57192687]
[1726015107763,0.0025446,57735.0,57730.0,0.70181354]
[1726015107972,0.0025446,57735.0,57730.0,0.71845896]
[1726015108432,0.0025446,57735.0,57730.0,0.58857229]
[1726015108868,0.0025446,57735.0,57730.0,0.58772522]
[1726015109300,0.0025446,57735.0,57730.0,0.69259967]
[1726015109746,0.0025446,57735.0,57730.0,0.69559967]
[1726015110397,0.0025446,57735.0,57730.0,0.95473985]
[1726015110637,0.0025446,57735.0,57730.0,0.98072967]
[1726015110900,0.0025446,57735.0,57730.0,0.8508654]
[1726015111351,0.0025446,57735.0,57730.0,0.8478654]
[1726015111568,0.0025446,57735.0,57730.0,0.8608654]
[1726015111926,0.0025446,57735.0,57730.0,0.8598654]
[1726015112355,0.0025446,57735.0,57730.0,1.00361538]
[1726015112575,0.0025446,57735.0,57730.0,0.98961538]
[1726015113259,0.0025446,57735.0,57730.0,0.99061538]
[1726015113478,0.0025446,57735.0,57730.0,1.01629151]
[1726015113945,0.0025446,57735.0,57730.0,1.01565316]
[1726015114365,0.0025446,57735.0,57730.0,0.88593161]
[1726015115165,0.0025446,57735.0,57730.0,0.989676]
[1726015116747,0.0025446,57735.0,57730.0,1.01557442]
[1726015117111,0.0025446,57735.0,57730.0,0.88593161]
[1726015117770,0.0025446,57735.0,57730.0,0.87193161]
[1726015118001,0.0025446,57735.0,57730.0,0.88593161]
[1726015118432,0.0025446,57735.0,57730.0,0.87193161]
[1726015118901,0.0030216,57731.0,57730.0,0.87193161]
[1726015119114,0.0030216,57731.0,57730.0,0.88593161]
[1726015119560,0.0030216,57731.0,57730.0,0.86860961]
[1726015121344,0.0030216,57731.0,57730.0,0.99814501]
[1726015121784,0.0030216,57731.0,57730.0,0.86860961]
[1726015122226,0.0025446,57735.0,57730.0,0.86860961]
[1726015122227,0.0025446,57735.0,57734.0,0.173208]
[1726015122448,0.0025446,57735.0,57734.0,0.45931724]
[1726015122677,0.0025446,57735.0,57734.0,0.47574148]
[1726015123566,0.0025446,57735.0,57734.0,0.48974148]
[1726015124258,0.0025446,57735.0,57734.0,0.5415383]
[1726015125146,0.0025446,57735.0,57734.0,0.48974148]
[1726015125363,0.0025446,57735.0,57734.0,0.55553483]
[1726015128257,0.0025446,57735.0,57734.0,0.46836577]
[1726015131389,0.0033636,57735.0,57734.0,0.46836577]
[1726015134251,0.0033636,57735.0,57734.0,0.41657242]
[1726015137587,0.0033636,57735.0,57734.0,0.24063224]
[1726015137796,0.0652636,57735.0,57734.0,0.21763224]
[1726015139364,0.0652636,57735.0,57734.0,0.23955926]
[1726015140007,0.0652636,57735.0,57734.0,0.21763224]
[1726015140494,0.0033636,57735.0,57734.0,0.21763224]
[1726015140731,0.0033636,57735.0,57734.0,0.24063224]
[1726015141164,0.0033636,57735.0,57734.0,0.29246313]
[1726015141610,0.0033636,57735.0,57734.0,0.31281087]
[1726015141816,0.0033636,57735.0,57734.0,0.37031657]
[1726015142039,0.0033636,57735.0,57734.0,0.3702999]
[1726015142923,0.0033636,57735.0,57734.0,0.69053925]
[1726015143136,0.0033636,57735.0,57734.0,0.77386996]
[1726015143390,0.0033636,57735.0,57734.0,0.71645141]
[1726015144056,0.0033636,57735.0,57734.0,0.61278963]
[1726015144277,0.0033636,57735.0,57734.0,0.74236686]
[1726015144512,0.0033636,57735.0,57734.0,0.74237807]
[1726015144733,0.0033636,57735.0,57734.0,0.91831825]
[1726015146256,0.0033636,57735.0,57734.0,0.78874102]
[1726015146738,0.0033636,57735.0,57734.0,0.7888096]
[1726015147190,0.0033636,57735.0,57734.0,0.91861409]
[1726015147633,0.0033636,57735.0,57734.0,0.7888096]
[1726015150065,0.0001,57739.0,57738.0,0.173196]
[1726015150293,0.0001,57739.0,57738.0,0.79606766]
[1726015150557,0.0001,57739.0,57738.0,1.02939223]
[1726015151010,0.0001,57739.0,57738.0,0.8736331]
[1726015151229,0.0001,57739.0,57738.0,1.38778259]
[1726015151434,0.0001,57739.0,57738.0,1.75163011]
[1726015151671,0.0001,57739.0,57738.0,1.76263011]